fUST/lending_fUST_20251021
["ID","MTS","AMOUNT","RATE_DAILY","PERIOD"]
[391934382,1761006638170,-300.0,0.00027105,30]
[391934383,1761006638179,-300.0,0.00027105,30]
[391934384,1761006638189,-300.0,0.00027105,30]
[391934385,1761006638198,-300.0,0.00027105,30]
[391934386,1761006638207,-300.0,0.00027105,30]
[391934387,1761006638217,-184.07439681,0.00027105,30]
[391934414,1761006644712,-115.92560319,0.00027105,30]
[391934415,1761006644721,-300.0,0.00027105,30]
[391934416,1761006644731,-300.0,0.00027105,30]
[391934417,1761006644740,-300.0,0.00027105,30]
[391934418,1761006644749,-500.0,0.00027105,30]
[391934419,1761006644758,-492.50638407,0.00027111,2]
[391934420,1761006644767,-533.88981491,0.00027114,2]
[391934421,1761006644776,-652.66,0.00027121,3]
[391934422,1761006644786,-919.66,0.00027121,3]
[391934423,1761006644795,-459.82,0.00027121,3]
[391934424,1761006644803,-500.0,0.0002716,30]
[391934425,1761006644812,-402.9601108,0.00027198,2]
[391934426,1761006644821,-500.0,0.00027215,30]
[391934427,1761006644830,-500.0,0.00027269,30]
[391934428,1761006644839,-553.57076745,0.00027288,2]
[391934429,1761006644848,-500.0,0.00027324,30]
[391934430,1761006644857,-179.67658215,0.00027364,2]
[391934431,1761006644866,-219.33073743,0.00027373,2]
[391934438,1761006646161,-280.66926257,0.00027373,2]
[391934439,1761006646170,-316.50732243,0.00027373,2]
[391934440,1761006646218,-183.49267757,0.00027373,2]
[391934441,1761006646227,-500.0,0.00027373,2]
[391934442,1761006646236,-520.34331837,0.00027373,2]
[391934443,1761006646246,-500.0,0.00027373,2]
[391934444,1761006646256,-500.0,0.00027373,2]
[391934445,1761006646265,-500.0,0.00027373,2]
[391934446,1761006646275,-290.63311626,0.00027373,2]
[391934449,1761006646284,-500.0,0.00027373,2]
[391934451,1761006646293,-500.0,0.00027373,2]
[391934452,1761006646302,-160.0,0.00027373,2]
[391934453,1761006646312,-151.0,0.00027375,2]
[391934454,1761006646322,-267.24188545,0.00027375,2]
[391934455,1761006646332,-151.0,0.00027375,2]
[391934456,1761006646341,-151.0,0.00027375,2]
[391934457,1761006646351,-500.0,0.00027375,2]
[391934458,1761006646361,-151.0,0.00027375,2]
[391934459,1761006646371,-151.0,0.00027375,2]
[391934460,1761006646380,-500.0,0.00027379,30]
[391934461,1761006646389,-2095.78900235,0.00027387,2]
[391934462,1761006646506,-25995.31766259,0.00027387,2]
[391934472,1761006894791,160.0,0.00024,2]
[391934473,1761006895568,160.0,0.00024,2]
[391934474,1761006907483,160.0,0.00024,2]
[391934477,1761006963507,2000.000001,0.00030136,120]
[391934478,1761006967090,160.0,0.000301,120]
[391934479,1761006978777,159.60000001,0.000301,120]
[391934480,1761007171689,606.935427,0.00013699,2]
[391934481,1761007171884,606.935427,0.00020187,2]
[391934485,1761007296578,190.275469,0.00030137,120]
[391934486,1761007329129,1000.0,0.00030136,120]
[391934487,1761007344329,800.0,0.00030136,120]
[391934489,1761007357800,711.1080935,0.00030136,120]
[391934490,1761007382634,1034.74229966,0.00024,10]
[391934530,1761007831883,-323.160695,0.00024288,28]
[391934531,1761007831892,-220.281293,0.00024288,28]
[391934532,1761007831901,-321.10740445,0.00024288,2]
[391934533,1761007831911,-369.27351512,0.00024888,2]
[391934534,1761007831920,-239.0,0.00025,2]
[391934535,1761007831929,-417.43962579,0.00025488,2]
[391934536,1761007831939,-109.05346664,0.0002555,2]
[391934549,1761007837725,-410.82893464,0.0002555,2]
[391934550,1761007837735,-1200.0,0.00025561,2]
[391934551,1761007837746,-300.0,0.00025561,2]
[391934552,1761007837757,-5582.5888124,0.00025562,2]
[391934553,1761007837767,-10829.52352594,0.00025562,2]
[391934554,1761007837777,-729.3,0.0002563,3]
[391934555,1761007837787,-364.65,0.0002563,3]
[391934556,1761007837796,-182.33,0.0002563,3]
[391934557,1761007837806,-546.99,0.0002563,3]
[391934558,1761007837815,-1670.47,0.00025631,10]
[391934559,1761007837827,-2608.15,0.00025631,10]
[391934560,1761007837836,-468.81765758,0.00025639,2]
[391934561,1761007837846,-273.19173859,0.00025639,2]
[391934562,1761007837855,-500.0,0.00025639,2]
[391934563,1761007837864,-646.77628718,0.00025639,2]
[391934564,1761007837874,-500.0,0.00025639,2]
[391934565,1761007837884,-187325.409325,0.0002564,2]
[391934566,1761007837894,-24473.7966783,0.0002564,2]
[391934567,1761007837903,-370000.0,0.0002565,2]
[391934568,1761007837913,-500.0,0.00025673,2]
[391934569,1761007837922,-379.77643342,0.00025673,2]
[391934570,1761007837931,-500.0,0.00025673,2]
[391934571,1761007837940,-224.125813,0.00025673,2]
[391934572,1761007837949,-500.0,0.00025673,2]
[391934573,1761007837959,-500.0,0.00025673,2]
[391934574,1761007837969,-161.0,0.00025699,14]
[391934575,1761007837978,-18607.62,0.000257,7]
[391934576,1761007837990,-402.9601108,0.000257,7]
[391934577,1761007837999,-465.60573646,0.00026088,2]
[391934578,1761007838007,-300.0,0.00026162,30]
[391934579,1761007838017,-300.0,0.00026162,30]
[391934580,1761007838026,-300.0,0.00026162,30]
[391934581,1761007838036,-300.0,0.00026162,30]
[391934582,1761007838045,-300.0,0.00026162,30]
[391934583,1761007838055,-300.0,0.00026162,30]
[391934584,1761007838064,-300.0,0.00026162,30]
[391934585,1761007838073,-300.0,0.00026162,30]
[391934586,1761007838082,-300.0,0.00026162,30]
[391934587,1761007838092,-300.0,0.00026162,30]
[391934588,1761007838102,-300.0,0.00026162,30]
[391934589,1761007838111,-300.0,0.00026162,30]
[391934590,1761007838120,-300.0,0.00026162,30]
[391934591,1761007838130,-300.0,0.00026162,30]
[391934592,1761007838139,-300.0,0.00026162,30]
[391934593,1761007838148,-600.0,0.00026162,30]
[391934594,1761007838157,-1000.0,0.00026221,2]
[391934595,1761007838166,-1000.0,0.00026221,2]
[391934596,1761007838175,-270.0,0.00026308,2]
[391934597,1761007838184,-334.0,0.00026544,2]
[391934598,1761007838194,-26760.7727608,0.00026624,2]
[391934599,1761007838203,-3496.25666833,0.00026624,2]
[391934600,1761007838212,-323.160695,0.00026634,28]
[391934601,1761007838222,-220.281293,0.00026634,28]
[391934602,1761007838231,-606.935427,0.00026676,2]
[391934603,1761007838240,-513.77184712,0.00026688,2]
[391934604,1761007838249,-519.88240127,0.0002669,2]
[391934605,1761007838259,-160.0,0.0002675,2]
[391934606,1761007838268,-1007.2367903,0.00026768,2]
[391934607,1761007838277,-1500.0,0.00026768,2]
[391934608,1761007838286,-1458.6,0.00027,3]
[391934609,1761007838296,-729.3,0.00027,3]
[391934610,1761007838305,-364.66,0.00027,3]
[391934611,1761007838315,-323.160695,0.00027,2]
[391934612,1761007838325,-220.281293,0.00027,2]
[391934613,1761007838334,-402.9601108,0.00027097,3]
[391934614,1761007838571,-13491.33538253,0.00027097,3]
[391934615,1761007838601,-160.0,0.00027183,2]
[391934616,1761007838611,-160.0,0.00027183,2]
[391934617,1761007838620,-160.0,0.00027198,2]
[391934618,1761007838629,-561.93795779,0.00027288,2]
[391934619,1761007838639,-260.0,0.00027298,2]
[391934620,1761007838648,-160.0,0.000273,30]
[391934621,1761007838657,-160.0,0.000273,30]
[391934622,1761007838667,-160.0,0.000273,30]
[391934623,1761007838677,-1876.50523714,0.00027316,2]
[391934624,1761007838686,-489.5163815,0.00027331,2]
[391934625,1761007838696,-13424.0862698,0.00027331,2]
[391934626,1761007838706,-244.7581907,0.00027331,2]
[391934627,1761007838715,-244.7581907,0.00027331,2]
[391934628,1761007838725,-26760.7727608,0.00027363,2]
[391934629,1761007838734,-3496.25666833,0.00027363,2]
[391934630,1761007838745,-179.67658215,0.00027364,2]
[391934631,1761007838756,-5582.58881236,0.00027372,2]
[391934632,1761007838766,-402.9601108,0.00027372,2]
[391934633,1761007838775,-570.82366199,0.00027373,2]
[391934634,1761007838785,-500.0,0.00027373,2]
[391934635,1761007838795,-500.0,0.00027373,2]
[391934636,1761007838804,-500.0,0.00027373,2]
[391934637,1761007838813,-500.0,0.00027373,2]
[391934638,1761007838824,-500.0,0.00027373,2]
[391934639,1761007838835,-500.0,0.00027373,2]
[391934640,1761007838845,-500.0,0.00027373,2]
[391934641,1761007838855,-500.0,0.00027373,2]
[391934642,1761007838864,-500.0,0.00027373,2]
[391934643,1761007838874,-512.37143401,0.00027373,2]
[391934644,1761007838883,-500.0,0.00027373,2]
[391934645,1761007838892,-500.0,0.00027373,2]
[391934646,1761007838902,-500.0,0.00027373,2]
[391934647,1761007838911,-151.0,0.00027379,30]
[391934648,1761007838921,-10488.770005,0.00027387,2]
[391934649,1761007838930,-533.88981491,0.0002739,2]
[391934650,1761007838940,-151.0,0.00027397,2]
[391934651,1761007838950,-151.0,0.00027397,2]
[391934652,1761007838960,-151.0,0.00027397,2]
[391934653,1761007838970,-151.0,0.00027397,2]
[391934654,1761007838980,-151.0,0.00027397,2]
[391934655,1761007838989,-151.0,0.00027397,2]
[391934656,1761007838999,-557.84,0.00027397,2]
[391934657,1761007839010,-557.84,0.00027397,2]
[391934658,1761007839020,-557.84,0.00027397,2]
[391934659,1761007839030,-557.84,0.00027397,2]
[391934660,1761007839039,-557.84,0.00027397,2]
[391934661,1761007839052,-557.84,0.00027397,2]
[391934662,1761007839062,-557.84,0.00027397,2]
[391934663,1761007839071,-557.84,0.00027397,2]
[391934664,1761007839081,-557.84,0.00027397,2]
[391934665,1761007839090,-557.84,0.00027397,2]
[391934666,1761007839099,-557.84,0.00027397,2]
[391934667,1761007839108,-557.84,0.00027397,2]
[391934668,1761007839117,-557.84,0.00027397,2]
[391934669,1761007839127,-557.84,0.00027397,2]
[391934670,1761007839137,-557.84,0.00027397,2]
[391934671,1761007839147,-557.84,0.00027397,2]
[391934672,1761007839156,-557.84,0.00027397,2]
[391934673,1761007839166,-557.84,0.00027397,2]
[391934674,1761007839175,-557.84,0.00027397,2]
[391934675,1761007839184,-557.84,0.00027397,2]
[391934676,1761007839195,-557.84,0.00027397,2]
[391934677,1761007839205,-557.84,0.00027397,2]
[391934678,1761007839215,-557.84,0.00027397,2]
[391934679,1761007839224,-557.99501602,0.00027397,2]
[391934680,1761007839233,-151.0,0.00027397,7]
[391934681,1761007839243,-151.0,0.00027397,7]
[391934682,1761007839252,-151.0,0.00027397,7]
[391934683,1761007839261,-1000.0,0.00027397,2]
[391934684,1761007839271,-1000.0,0.00027397,2]
[391934685,1761007839280,-1000.0,0.00027397,2]
[391934686,1761007839289,-1000.0,0.00027397,2]
[391934687,1761007839298,-1000.0,0.00027397,2]
[391934688,1761007839307,-1000.0,0.00027397,2]
[391934689,1761007839316,-1000.0,0.00027397,2]
[391934690,1761007839326,-1000.0,0.00027397,2]
[391934691,1761007839335,-1000.0,0.00027397,2]
[391934692,1761007839344,-1000.0,0.00027397,2]
[391934693,1761007839352,-1000.0,0.00027397,2]
[391934694,1761007839361,-1000.0,0.00027397,2]
[391934695,1761007839371,-1000.0,0.00027397,2]
[391934696,1761007839380,-1000.0,0.00027397,2]
[391934697,1761007839389,-151.0,0.00027397,7]
[391934698,1761007839398,-151.0,0.00027397,7]
[391934699,1761007839407,-151.0,0.00027397,7]
[391934701,1761007839416,-245.012502,0.00027397,7]
[391934703,1761007839425,-1000.0,0.00027397,2]
[391934705,1761007839436,-561.13232975,0.00027397,2]
[391934708,1761007839445,-151.0,0.00027397,7]
[391934711,1761007839454,-151.0,0.00027397,7]
[391934714,1761007839463,-1500.0,0.00027397,30]
[391934716,1761007839471,-151.0,0.00027397,7]
[391934718,1761007839480,-151.0,0.00027397,7]
[391934720,1761007839490,-151.0,0.00027397,7]
[391934722,1761007839500,-151.0,0.00027397,7]
[391934724,1761007839509,-151.0,0.00027397,7]
[391934726,1761007839519,-1000.0,0.00027397,2]
[391934728,1761007839529,-1000.0,0.00027397,2]
[391934730,1761007839538,-1000.0,0.00027397,2]
[391934732,1761007839547,-1000.0,0.00027397,2]
[391934734,1761007839556,-1000.0,0.00027397,2]
[391934736,1761007839564,-1000.0,0.00027397,2]
[391934738,1761007839573,-1000.0,0.00027397,2]
[391934740,1761007839582,-1000.0,0.00027397,2]
[391934742,1761007839591,-1000.0,0.00027397,2]
[391934744,1761007839599,-1000.0,0.00027397,2]
[391934746,1761007839608,-1000.0,0.00027397,2]
[391934748,1761007839616,-1000.0,0.00027397,2]
[391934750,1761007839625,-1000.0,0.00027397,2]
[391934752,1761007839634,-1000.0,0.00027397,2]
[391934753,1761007839643,-1000.0,0.00027397,2]
[391934755,1761007839651,-1000.0,0.00027397,2]
[391934756,1761007839660,-232.36513678,0.00027397,2]
[391934758,1761007839669,-151.0,0.00027397,7]
[391934760,1761007839678,-151.0,0.00027397,7]
[391934762,1761007839687,-151.0,0.00027397,7]
[391934764,1761007839696,-151.0,0.00027397,7]
[391934766,1761007839704,-2945.44,0.00027397,2]
[391934768,1761007839713,-2945.44,0.00027397,2]
[391934770,1761007839722,-2945.44,0.00027397,2]
[391934772,1761007839731,-2945.44,0.00027397,2]
[391934775,1761007839740,-2945.44,0.00027397,2]
[391934778,1761007839753,-2945.44,0.00027397,2]
[391934780,1761007839762,-2945.44,0.00027397,2]
[391934783,1761007839771,-2945.44,0.00027397,2]
[391934787,1761007839780,-2945.44,0.00027397,2]
[391934789,1761007839790,-2945.44,0.00027397,2]
[391934793,1761007839800,-2945.44,0.00027397,2]
[391934796,1761007839811,-2945.44,0.00027397,2]
[391934799,1761007839821,-2945.44,0.00027397,2]
[391934802,1761007839830,-2945.44,0.00027397,2]
[391934804,1761007839841,-2945.44,0.00027397,2]
[391934806,1761007839850,-2945.44,0.00027397,2]
[391934808,1761007839860,-2945.44,0.00027397,2]
[391934811,1761007839869,-2945.44,0.00027397,2]
[391934814,1761007839879,-2945.44,0.00027397,2]
[391934817,1761007839888,-2945.44,0.00027397,2]
[391934820,1761007839897,-2945.44,0.00027397,2]
[391934823,1761007839906,-2945.44,0.00027397,2]
[391934826,1761007839915,-2945.44,0.00027397,2]
[391934829,1761007839924,-2945.51351934,0.00027397,2]
[391934832,1761007839934,-151.0,0.00027397,7]
[391934835,1761007839943,-151.0,0.00027397,7]
[391934838,1761007839953,-222.186692,0.00027397,7]
[391934841,1761007839963,-151.0,0.00027397,7]
[391934844,1761007839973,-151.0,0.00027397,7]
[391934847,1761007839982,-151.0,0.00027397,7]
[391934850,1761007839991,-1187.75,0.00027397,2]
[391934853,1761007840001,-1187.75,0.00027397,2]
[391934856,1761007840010,-1187.75,0.00027397,2]
[391934857,1761007840019,-1187.75,0.00027397,2]
[391934859,1761007840029,-1187.75,0.00027397,2]
[391934861,1761007840038,-1187.75,0.00027397,2]
[391934863,1761007840047,-1187.75,0.00027397,2]
[391934865,1761007840057,-1187.75,0.00027397,2]
[391934867,1761007840066,-1187.75,0.00027397,2]
[391934869,1761007840075,-1187.75,0.00027397,2]
[391934871,1761007840084,-1187.75,0.00027397,2]
[391934873,1761007840093,-1187.75,0.00027397,2]
[391934875,1761007840102,-1187.75,0.00027397,2]
[391934877,1761007840111,-1187.75,0.00027397,2]
[391934879,1761007840121,-1187.75,0.00027397,2]
[391934880,1761007840130,-1187.75,0.00027397,2]
[391934881,1761007840139,-1187.75,0.00027397,2]
[391934882,1761007840149,-1187.75,0.00027397,2]
[391934884,1761007840158,-1187.75,0.00027397,2]
[391934886,1761007840167,-1187.75,0.00027397,2]
[391934888,1761007840176,-1187.75,0.00027397,2]
[391934890,1761007840184,-1187.75,0.00027397,2]
[391934892,1761007840194,-1187.75,0.00027397,2]
[391934894,1761007840203,-1187.96021411,0.00027397,2]
[391934897,1761007840212,-151.0,0.00027397,7]
[391934900,1761007840221,-190.282126,0.00027397,7]
[391934903,1761007840230,-190.282126,0.00027397,7]
[391934906,1761007840240,-190.282126,0.00027397,7]
[391934909,1761007840248,-500.0,0.00027397,60]
[391934912,1761007840258,-500.0,0.00027397,60]
[391934915,1761007840267,-500.0,0.00027397,60]
[391934918,1761007840276,-500.0,0.00027397,60]
[391934921,1761007840285,-500.0,0.00027397,60]
[391934924,1761007840294,-500.0,0.00027397,60]
[391934927,1761007840303,-500.0,0.00027397,60]
[391934930,1761007840312,-500.0,0.00027397,60]
[391934934,1761007840323,-153.899138,0.00027397,60]
[391934937,1761007840332,-154.08754,0.00027397,30]
[391934940,1761007840340,-154.08754,0.00027397,30]
[391934943,1761007840349,-154.08754,0.00027397,30]
[391934946,1761007840358,-154.08754,0.00027397,30]
[391934949,1761007840367,-151.782599,0.00027397,30]
[391934952,1761007840376,-500.0,0.00027397,15]
[391934955,1761007840385,-3112.86,0.000274,2]
[391934958,1761007840394,-151.0,0.00027434,30]
[391934961,1761007840403,-248.78940784,0.00027452,2]
[391934963,1761007840412,-198.0,0.00027452,2]
[391934965,1761007840422,-151.0,0.00027452,2]
[391934967,1761007840432,-151.0,0.00027452,2]
[391934969,1761007840441,-151.0,0.00027452,2]
[391934971,1761007840450,-151.0,0.00027489,30]
[391934973,1761007840458,-3496.25666833,0.0002749,2]
[391934975,1761007840467,-13543.35366489,0.000275,2]
[391934977,1761007840476,-18607.62,0.000275,7]
[391934979,1761007840486,-151.0,0.00027507,2]
[391934981,1761007840495,-151.0,0.00027507,2]
[391934984,1761007840504,-151.0,0.00027507,2]
[391934986,1761007840513,-151.0,0.00027543,30]
[391934988,1761007840522,-160.37779575,0.00027561,2]
[391934990,1761007840531,-151.0,0.00027561,2]
[391934992,1761007840540,-151.0,0.00027561,2]
[391934994,1761007840549,-151.0,0.00027598,30]
[391934996,1761007840558,-151.0,0.00027598,15]
[391934998,1761007840567,-284.79249431,0.00027598,30]
[391935000,1761007840576,-245.0,0.00027616,2]
[391935002,1761007840586,-245.0,0.00027616,2]
[391935004,1761007840595,-151.0,0.00027671,30]
[391935006,1761007840603,-151.0,0.00027671,30]
[391935008,1761007840612,-151.0,0.00027671,30]
[391935010,1761007840621,-151.0,0.00027671,30]
[391935012,1761007840630,-402.9601108,0.00027671,30]
[391935014,1761007840639,-1500.0,0.00027671,30]
[391935016,1761007840649,-500.0,0.00027671,15]
[391935018,1761007840658,-420.0,0.00027675,2]
[391935021,1761007840668,-1606.37120839,0.000278,2]
[391935023,1761007840679,-151.0,0.000278,30]
[391935025,1761007840688,-190.282126,0.000278,30]
[391935027,1761007840699,-190.282126,0.000278,30]
[391935029,1761007840710,-190.282126,0.000278,30]
[391935031,1761007840722,-519.88240127,0.0002783,2]
[391935033,1761007840731,-360.0,0.00027846,2]
[391935036,1761007840742,-610.10406846,0.00027888,2]
[391935038,1761007840756,-502.13746908,0.00027921,5]
[391935039,1761007840766,-1000.0,0.00027921,5]
[391935040,1761007840775,-1110.37696371,0.00027921,2]
[391935041,1761007840786,-1000.0,0.00027921,5]
[391935042,1761007840795,-442.97174692,0.00027921,5]
[391935043,1761007840805,-1000.0,0.00027921,5]
[391935044,1761007840815,-1000.0,0.00027921,5]
[391935045,1761007840826,-1000.0,0.00027921,5]
[391935046,1761007840835,-1024.87285329,0.00027921,5]
[391935047,1761007840845,-527.013,0.00027935,18]
[391935048,1761007840854,-553.64373807,0.00027938,2]
[391935049,1761007840863,-1067.03131726,0.00027945,30]
[391935050,1761007840872,-500.0,0.00027945,15]
[391935051,1761007840881,-589.7208673,0.00028058,30]
[391935052,1761007840890,-589.7208673,0.00028058,30]
[391935053,1761007840899,-550.756597,0.00028058,30]
[391935054,1761007840908,-392.7178133,0.00028082,30]
[391935055,1761007840917,-153.0,0.00028129,2]
[391935056,1761007840927,-153.0,0.00028129,2]
[391935057,1761007840936,-153.0,0.00028129,2]
[391935058,1761007840946,-153.0,0.00028129,2]
[391935059,1761007840955,-153.0,0.00028129,2]
[391935060,1761007840964,-153.0,0.00028129,2]
[391935061,1761007840973,-153.0,0.00028129,2]
[391935062,1761007840983,-153.0,0.00028129,2]
[391935063,1761007840993,-153.0,0.00028129,2]
[391935064,1761007841002,-153.0,0.00028129,2]
[391935065,1761007841011,-153.0,0.00028129,2]
[391935066,1761007841020,-153.0,0.00028129,2]
[391935067,1761007841029,-153.0,0.00028129,2]
[391935068,1761007841039,-153.0,0.00028129,2]
[391935069,1761007841049,-5000.0,0.00028212,2]
[391935070,1761007841059,-500.0,0.00028219,15]
[391935071,1761007841068,-460.0,0.00028394,2]
[391935072,1761007841077,-151.0,0.00028413,30]
[391935073,1761007841086,-4204.0,0.00028413,2]
[391935074,1761007841095,-632.0,0.00028413,2]
[391935075,1761007841104,-999.443,0.00028413,2]
[391935076,1761007841114,-2163.0,0.00028413,2]
[391935077,1761007841123,-3496.25666833,0.0002842,2]
[391935078,1761007841132,-153.0,0.00028429,2]
[391935079,1761007841142,-153.0,0.00028429,2]
[391935080,1761007841151,-151.0,0.0002843,30]
[391935081,1761007841160,-154.08754,0.0002843,30]
[391935082,1761007841169,-154.08754,0.0002843,30]
[391935083,1761007841178,-154.08754,0.0002843,30]
[391935084,1761007841187,-154.08754,0.0002843,30]
[391935085,1761007841197,-151.0,0.0002843,30]
[391935086,1761007841206,-1500.0,0.00028468,5]
[391935087,1761007841216,-1500.0,0.00028468,5]
[391935088,1761007841226,-500.0,0.00028468,5]
[391935089,1761007841235,-1500.0,0.00028468,5]
[391935090,1761007841245,-1500.0,0.00028468,5]
[391935091,1761007841254,-574.12855637,0.00028486,2]
[391935092,1761007841264,-658.27017913,0.00028488,2]
[391935093,1761007841273,-151.0,0.0002849,30]
[391935094,1761007841283,-151.0,0.0002849,30]
[391935095,1761007841293,-10488.770005,0.0002849,2]
[391935096,1761007841302,-500.0,0.00028493,15]
[391935097,1761007841311,-139407.27731996,0.000285,7]
[391935098,1761007841322,-151.0,0.000285,30]
[391935099,1761007841332,-151.0,0.000285,30]
[391935100,1761007841342,-151.0,0.000285,30]
[391935101,1761007841352,-151.0,0.000285,30]
[391935102,1761007841361,-151.0,0.000285,30]
[391935103,1761007841372,-151.0,0.000285,30]
[391935104,1761007841382,-402.9601108,0.000285,7]
[391935105,1761007841392,-1975.411402,0.000285,2]
[391935106,1761007841401,-187.75765,0.000285,30]
[391935107,1761007841412,-190.282126,0.000285,30]
[391935108,1761007841421,-190.282126,0.000285,30]
[391935109,1761007841430,-190.282126,0.000285,30]
[391935110,1761007841439,-250.0,0.00028587,2]
[391935111,1761007841448,-500.0,0.00028639,5]
[391935112,1761007841458,-500.0,0.00028639,5]
[391935113,1761007841467,-989.59810801,0.0002876,2]
[391935114,1761007841476,-4000.0,0.0002876,5]
[391935115,1761007841485,-2318.4149331,0.0002876,2]
[391935116,1761007841494,-250.31971598,0.0002876,2]
[391935117,1761007841503,-500.0,0.00028767,15]
[391935118,1761007841512,-720.0,0.00028779,30]
[391935119,1761007841521,-500.0,0.0002878,5]
[391935120,1761007841531,-500.0,0.0002878,5]
[391935121,1761007841540,-169.83253239,0.000288,7]
[391935122,1761007841549,-500.0,0.00028879,11]
[391935123,1761007841558,-500.0,0.00028879,11]
[391935124,1761007841567,-560.0,0.00028942,2]
[391935125,1761007841576,-519.88240127,0.0002897,2]
[391935126,1761007841585,-323.160695,0.00028979,28]
[391935127,1761007841594,-220.281293,0.00028979,28]
[391935128,1761007841603,-3496.25666833,0.0002899,2]
[391935129,1761007841612,-881.98862225,0.00029,2]
[391935130,1761007841621,-1169.01441972,0.00029,2]
[391935131,1761007841631,-502.44369659,0.00029,7]
[391935132,1761007841642,-160.0,0.00029,30]
[391935133,1761007841652,-18607.62,0.00029,7]
[391935134,1761007841661,-1000.0,0.00029,2]
[391935135,1761007841670,-762.0,0.00029,2]
[391935136,1761007841679,-154.08754,0.00029,30]
[391935137,1761007841689,-154.08754,0.00029,30]
[391935138,1761007841698,-154.08754,0.00029,30]
[391935139,1761007841707,-154.08754,0.00029,30]
[391935140,1761007841716,-151.0,0.00029,30]
[391935141,1761007841725,-151.0,0.00029,30]
[391935142,1761007841735,-1302.64,0.00029,2]
[391935143,1761007841746,-2000.0,0.00029016,5]
[391935144,1761007841759,-1520.68978413,0.00029016,5]
[391935145,1761007841768,-1007.1927802,0.00029016,5]
[391935146,1761007841777,-1527.64625486,0.00029016,5]
[391935147,1761007841787,-595.37131296,0.00029034,2]
[391935148,1761007841796,-500.0,0.00029041,15]
[391935149,1761007841805,-706.43628979,0.00029088,2]
[391935150,1761007841815,-323.160695,0.00029093,2]
[391935151,1761007841825,-220.281293,0.00029093,2]
[391935152,1761007841834,-241.797563,0.000291,2]
[391935153,1761007841843,-500.0,0.0002913,5]
[391935154,1761007841853,-500.0,0.0002913,20]
[391935155,1761007841862,-500.0,0.0002913,5]
[391935156,1761007841871,-500.0,0.0002913,20]
[391935157,1761007841880,-500.0,0.0002913,5]
[391935158,1761007841890,-500.0,0.0002913,5]
[391935159,1761007841899,-1302.64,0.00029174,2]
[391935160,1761007841908,-5582.58881236,0.00029181,2]
[391935161,1761007841918,-515.02448864,0.00029187,5]
[391935162,1761007841927,-946.45912168,0.00029187,5]
[391935163,1761007841936,-500.0,0.00029315,15]
[391935164,1761007841946,-638.68500447,0.00029325,4]
[391935165,1761007841955,-323.76512917,0.00029325,4]
[391935166,1761007841964,-1000.0,0.00029328,5]
[391935167,1761007841974,-1302.64,0.00029348,2]
[391935168,1761007841983,-2020.24908728,0.0002939,5]
[391935169,1761007841992,-3496.25666833,0.00029392,2]
[391935170,1761007842003,-402.9601108,0.000294,7]
[391935171,1761007842012,-447.53342912,0.00029402,2]
[391935172,1761007842022,-237.59489316,0.00029402,2]
[391935173,1761007842031,-427.67080768,0.00029402,2]
[391935174,1761007842040,-759.54335445,0.00029402,2]
[391935175,1761007842050,-468.72103043,0.00029402,2]
[391935176,1761007842059,-843.69785478,0.00029402,2]